[Event "Božićni turnir u VaraždinskimToplicama 26.12.2025."]
[Site "Varazdinske Toplice, Croatia"]
[Date "2025.12.26"]
[Round "6.14"]
[White "Mundja, Zlatko"]
[Black "Hostnjak, Hrvoje"]
[Result "0-1"]
[TimeControl "10"]
[WhiteFideId "14593971"]
[BlackFideId "14551470"]
[WhiteElo "1479"]
[BlackElo "1704"]

1. e4 {[%clk 00:09:59]} c6 {[%clk 00:09:59]} {[%emt 00:00:01]} 2. d4 {[%clk
00:09:56]} {[%emt 00:00:03]} d5 {[%clk 00:09:59]} {[%emt 00:00:01]} 3. exd5
{[%clk 00:09:55]} cxd5 {[%clk 00:09:58]} 4. c4 {[%clk 00:09:54]} {[%emt
00:00:01]} Nf6 {[%emt 00:00:02]} 5. Nc3 {[%clk 00:09:52]} e6 {[%clk 00:09:53]}
{[%emt 00:00:05]} 6. Nf3 {[%clk 00:09:49]} {[%emt 00:00:03]} Nc6 {[%clk
00:09:50]} {[%emt 00:00:03]} 7. a3 {[%clk 00:09:41]} {[%emt 00:00:08]} Be7
{[%clk 00:09:46]} {[%emt 00:00:04]} 8. c5 {[%clk 00:09:33]} {[%emt 00:00:08]}
O-O {[%clk 00:09:40]} {[%emt 00:00:06]} 9. Bd3 {[%clk 00:09:22]} {[%emt
00:00:10]} Re8 {[%clk 00:09:16]} {[%emt 00:00:25]} 10. O-O {[%clk 00:09:20]}
{[%emt 00:00:02]} Bf8 {[%clk 00:09:00]} {[%emt 00:00:16]} 11. b4 {[%clk
00:09:16]} {[%emt 00:00:04]} e5 {[%clk 00:08:45]} {[%emt 00:00:15]} 12. dxe5
{[%clk 00:09:00]} {[%emt 00:00:16]} Nxe5 {[%clk 00:08:44]} {[%emt 00:00:01]} 13.
Nxe5 {[%clk 00:08:50]} {[%emt 00:00:10]} Rxe5 {[%clk 00:08:42]} {[%emt
00:00:02]} 14. Bf4 {[%clk 00:08:38]} {[%emt 00:00:11]} Re8 {[%clk 00:08:35]}
{[%emt 00:00:08]} 15. Bg5 {[%clk 00:08:20]} {[%emt 00:00:17]} Be7 {[%clk
00:07:54]} {[%emt 00:00:41]} 16. Qc2 {[%clk 00:07:39]} {[%emt 00:00:42]} h6
{[%clk 00:07:50]} {[%emt 00:00:04]} 17. Bh4 {[%clk 00:07:28]} {[%emt 00:00:11]}
Be6 {[%clk 00:07:42]} {[%emt 00:00:08]} 18. Rad1 {[%clk 00:07:21]} {[%emt
00:00:04]} Rc8 {[%clk 00:07:28]} {[%emt 00:00:16]} 19. Rfe1 {[%clk 00:07:18]}
{[%emt 00:00:03]} b6 {[%clk 00:07:25]} {[%emt 00:00:04]} 20. Bb5 {[%clk
00:07:07]} {[%emt 00:00:10]} Rf8 {[%clk 00:06:44]} {[%emt 00:00:42]} 21. Bxf6
{[%clk 00:06:58]} {[%emt 00:00:09]} Bxf6 {[%clk 00:06:42]} 22. Ne4 {[%clk
00:06:53]} {[%emt 00:00:06]} bxc5 {[%clk 00:06:30]} {[%emt 00:00:13]} 23. Nxc5
{[%clk 00:06:38]} {[%emt 00:00:14]} Qb6 {[%clk 00:06:24]} {[%emt 00:00:07]} 24.
Qa4 {[%clk 00:05:48]} {[%emt 00:00:49]} Rfd8 {[%clk 00:06:00]} {[%emt
00:00:23]} 25. Nxe6 {[%clk 00:05:31]} {[%emt 00:00:18]} fxe6 {[%clk 00:05:54]}
{[%emt 00:00:06]} 26. Bd7 {[%clk 00:05:21]} {[%emt 00:00:10]} Rc3 {[%clk
00:05:26]} {[%emt 00:00:29]} 27. Bxe6+ {[%clk 00:05:16]} {[%emt 00:00:03]} Kh8
{[%clk 00:05:25]} {[%emt 00:00:02]} 28. Bxd5 {[%clk 00:05:05]} {[%emt
00:00:11]} Rf8 {[%clk 00:04:59]} {[%emt 00:00:26]} 29. Re8 {[%clk 00:04:57]}
{[%emt 00:00:08]} Rc8 {[%clk 00:04:57]} {[%emt 00:00:01]} 30. Rxc8 Rxc8 {[%clk
00:04:56]} 31. Re1 {[%clk 00:04:33]} {[%emt 00:00:16]} Qd8 {[%clk 00:04:40]}
{[%emt 00:00:17]} 32. Bf7 {[%clk 00:04:22]} {[%emt 00:00:11]} Kh7 {[%clk
00:04:12]} {[%emt 00:00:28]} 33. Be6 {[%clk 00:03:48]} {[%emt 00:00:34]} Qd2
{[%clk 00:03:24]} {[%emt 00:00:48]} 34. Bf5+ {[%clk 00:03:41]} {[%emt
00:00:07]} g6 {[%clk 00:03:24]} 35. Rd1 {[%clk 00:03:16]} {[%emt 00:00:25]} Rc1
{[%clk 00:03:23]} {[%emt 00:00:02]} 36. Bg4 {[%clk 00:02:17]} {[%emt 00:00:58]}
Qe1+ {[%clk 00:03:21]} {[%emt 00:00:02]} 37. Bf5 {[%emt 00:00:22]} Qd2 {[%emt
00:00:02]} 38. Qd7+ {[%emt 00:00:06]} Bg7 39. Qxa7 Rc8 {[%emt 00:00:13]} 40.
Qa4 Qd8 {[%emt 00:00:01]} 41. Be6 {[%emt 00:00:02]} Kg8 42. Bf5 {[%clk
00:10:00]} {[%emt 00:00:05]} 0-1

[Event "Božićni turnir u VaraždinskimToplicama 26.12.2025."]
[Site "Varazdinske Toplice, Croatia"]
[Date "2025.12.26"]
[Round "6.15"]
[White "Resman, Boris"]
[Black "Obad, Damir"]
[Result "0-1"]
[TimeControl "10"]
[WhiteFideId "14513781"]
[BlackFideId "14514532"]
[WhiteElo "1708"]
[BlackElo "1999"]

1. e4 {[%clk 00:09:59]} {[%emt 00:00:02]} c5 {[%clk 00:09:59]} 2. Nf3 {[%clk
00:09:58]} {[%emt 00:00:01]} d6 {[%clk 00:09:58]} {[%emt 00:00:02]} 3. d4
{[%clk 00:09:57]} {[%emt 00:00:01]} cxd4 {[%clk 00:09:56]} {[%emt 00:00:01]} 4.
Nxd4 {[%emt 00:00:04]} Nf6 {[%clk 00:09:52]} {[%emt 00:00:02]} 5. Nc3 {[%clk
00:09:54]} {[%emt 00:00:02]} a6 {[%clk 00:09:51]} {[%emt 00:00:01]} 6. Be3
{[%clk 00:09:49]} {[%emt 00:00:04]} Nbd7 {[%clk 00:09:45]} {[%emt 00:00:05]} 7.
f3 {[%clk 00:09:43]} {[%emt 00:00:07]} e6 {[%clk 00:09:37]} {[%emt 00:00:08]} 8.
Qd2 {[%clk 00:09:40]} {[%emt 00:00:02]} Qc7 {[%clk 00:09:36]} {[%emt 00:00:02]}
9. O-O-O {[%clk 00:09:38]} {[%emt 00:00:02]} b5 {[%clk 00:09:33]} {[%emt
00:00:03]} 10. Kb1 {[%clk 00:09:36]} {[%emt 00:00:02]} Be7 {[%clk 00:09:25]}
{[%emt 00:00:07]} 11. g4 {[%clk 00:09:33]} {[%emt 00:00:03]} O-O {[%clk
00:09:22]} {[%emt 00:00:03]} 12. h4 {[%clk 00:09:32]} {[%emt 00:00:02]} Nc5
{[%clk 00:09:11]} {[%emt 00:00:10]} 13. h5 {[%clk 00:09:27]} {[%emt 00:00:06]}
Nfd7 {[%clk 00:08:51]} {[%emt 00:00:20]} 14. g5 {[%clk 00:09:06]} {[%emt
00:00:21]} Ne5 {[%clk 00:08:21]} {[%emt 00:00:29]} 15. g6 {[%clk 00:08:42]}
{[%emt 00:00:25]} b4 {[%clk 00:07:45]} {[%emt 00:00:36]} 16. Nce2 {[%clk
00:08:09]} {[%emt 00:00:33]} fxg6 {[%clk 00:07:18]} {[%emt 00:00:26]} 17. Nf4
{[%clk 00:07:57]} {[%emt 00:00:13]} Bg5 {[%clk 00:07:04]} {[%emt 00:00:13]} 18.
Bh3 {[%clk 00:07:50]} {[%emt 00:00:08]} Bxf4 {[%clk 00:06:58]} {[%emt
00:00:06]} 19. Bxf4 {[%clk 00:07:48]} {[%emt 00:00:02]} Nc4 {[%clk 00:06:49]}
{[%emt 00:00:08]} 20. Qc1 {[%clk 00:07:42]} {[%emt 00:00:07]} e5 {[%clk
00:06:42]} {[%emt 00:00:07]} 21. hxg6 {[%clk 00:06:35]} {[%emt 00:01:08]} Rxf4
{[%clk 00:06:22]} {[%emt 00:00:19]} 22. Nf5 {[%clk 00:06:07]} {[%emt 00:00:28]}
Bxf5 {[%clk 00:06:11]} {[%emt 00:00:11]} 23. exf5 {[%clk 00:05:49]} {[%emt
00:00:18]} Na4 {[%clk 00:05:58]} {[%emt 00:00:13]} 24. gxh7+ {[%clk 00:04:41]}
{[%emt 00:01:08]} Kh8 {[%clk 00:05:51]} {[%emt 00:00:06]} 25. c3 {[%clk
00:03:55]} {[%emt 00:00:47]} Naxb2 {[%clk 00:05:19]} {[%emt 00:00:32]} 26. Rdg1
{[%clk 00:03:17]} {[%emt 00:00:38]} bxc3 {[%clk 00:04:22]} {[%emt 00:00:57]} 27.
Ka1 {[%clk 00:02:22]} {[%emt 00:00:55]} Nd2 {[%clk 00:03:58]} {[%emt 00:00:24]}
28. f6 {[%clk 00:01:54]} {[%emt 00:00:28]} Rxf6 {[%clk 00:03:46]} {[%emt
00:00:11]} 29. Rg3 {[%clk 00:01:17]} {[%emt 00:00:38]} Qa5 {[%clk 00:03:08]}
{[%emt 00:00:37]} 30. Rxg7 {[%clk 00:01:09]} {[%emt 00:00:09]} Nb3+ {[%clk
00:02:53]} {[%emt 00:00:13]} 31. Kb1 {[%clk 00:01:06]} {[%emt 00:00:05]} Nxc1
{[%clk 00:02:47]} {[%emt 00:00:06]} 32. Rg8+ {[%clk 00:00:55]} {[%emt
00:00:11]} Rxg8 {[%clk 00:02:45]} {[%emt 00:00:01]} 33. hxg8=Q+ Kxg8 {[%clk
00:02:44]} 34. Bf5 {[%clk 00:10:00]} {[%emt 00:00:07]} 0-1

[Event "Božićni turnir u VaraždinskimToplicama 26.12.2025."]
[Site "Varazdinske Toplice, Croatia"]
[Date "2025.12.26"]
[Round "7.1"]
[White "Sagovac, Kristijan"]
[Black "Segovic, Goran"]
[Result "1/2-1/2"]
[TimeControl "10"]
[WhiteFideId "14542960"]
[BlackFideId "14508842"]
[WhiteElo "2014"]
[BlackElo "2324"]

1. e4 {[%clk 00:09:59]} {[%emt 00:24:37]} e5 {[%clk 00:09:59]} {[%emt
00:00:01]} 2. Nf3 {[%clk 00:09:58]} Nc6 {[%clk 00:09:59]} {[%emt 00:00:01]} 3.
Bc4 {[%clk 00:09:57]} Nf6 {[%clk 00:09:57]} {[%emt 00:00:02]} 4. d3 {[%clk
00:09:56]} Be7 {[%clk 00:09:57]} 5. O-O {[%clk 00:09:54]} {[%emt 00:00:02]} O-O
{[%clk 00:09:55]} {[%emt 00:00:01]} 6. h3 {[%clk 00:09:53]} d5 {[%clk
00:09:55]} {[%emt 00:00:02]} 7. exd5 Nxd5 {[%clk 00:09:54]} 8. Re1 {[%clk
00:09:50]} {[%emt 00:00:01]} Bf6 {[%clk 00:09:40]} {[%emt 00:00:14]} 9. c3
{[%clk 00:09:40]} {[%emt 00:00:10]} Re8 {[%clk 00:09:31]} {[%emt 00:00:09]} 10.
Nbd2 {[%clk 00:09:33]} {[%emt 00:00:07]} Nb6 {[%clk 00:09:27]} {[%emt
00:00:04]} 11. Bb5 {[%clk 00:09:20]} {[%emt 00:00:13]} Bd7 {[%clk 00:09:27]}
{[%emt 00:00:01]} 12. Ne4 {[%clk 00:09:16]} {[%emt 00:00:03]} Be7 {[%clk
00:09:18]} {[%emt 00:00:09]} 13. Bxc6 {[%clk 00:09:06]} {[%emt 00:00:10]} Bxc6
{[%clk 00:09:17]} {[%emt 00:00:02]} 14. Nxe5 {[%clk 00:09:04]} {[%emt
00:00:01]} Bxe4 {[%clk 00:09:09]} {[%emt 00:00:08]} 15. Rxe4 {[%clk 00:08:44]}
{[%emt 00:00:20]} Bf6 {[%clk 00:08:48]} {[%emt 00:00:22]} 16. Bf4 {[%clk
00:08:15]} {[%emt 00:00:28]} Qd5 {[%clk 00:08:46]} {[%emt 00:00:02]} 17. Ng4
{[%clk 00:07:54]} {[%emt 00:00:21]} Rxe4 {[%clk 00:08:24]} {[%emt 00:00:23]} 18.
Nxf6+ {[%clk 00:07:49]} {[%emt 00:00:04]} gxf6 {[%clk 00:08:21]} {[%emt
00:00:03]} 19. dxe4 {[%clk 00:07:43]} {[%emt 00:00:06]} Qxe4 {[%clk 00:08:18]}
{[%emt 00:00:03]} 20. Bxc7 {[%clk 00:07:26]} {[%emt 00:00:17]} Nd5 {[%clk
00:08:17]} 21. Bg3 {[%clk 00:07:21]} {[%emt 00:00:05]} Re8 {[%clk 00:08:13]}
{[%emt 00:00:04]} 22. Qb3 {[%clk 00:07:02]} {[%emt 00:00:19]} f5 {[%clk
00:07:37]} {[%emt 00:00:37]} 23. Rd1 {[%clk 00:06:40]} {[%emt 00:00:22]} Nf6
{[%clk 00:07:14]} {[%emt 00:00:23]} 24. Qb5 {[%clk 00:05:48]} {[%emt 00:00:52]}
a6 {[%clk 00:07:10]} {[%emt 00:00:04]} 25. Qd3 {[%clk 00:05:20]} {[%emt
00:00:26]} Qe6 {[%clk 00:07:02]} {[%emt 00:00:09]} 26. Bf4 {[%clk 00:04:39]}
{[%emt 00:00:41]} Ne4 {[%clk 00:06:42]} {[%emt 00:00:20]} 27. Qd7 {[%clk
00:04:20]} {[%emt 00:00:20]} Re7 {[%clk 00:06:25]} {[%emt 00:00:16]} 28. Qd8+
{[%clk 00:03:45]} {[%emt 00:00:36]} Kg7 {[%clk 00:06:24]} 29. f3 {[%clk
00:03:13]} {[%emt 00:00:31]} Re8 {[%clk 00:06:02]} {[%emt 00:00:22]} 30. Qd4+
{[%clk 00:02:53]} {[%emt 00:00:21]} Nf6 {[%clk 00:06:01]} {[%emt 00:00:01]} 31.
Bg5 {[%clk 00:02:36]} {[%emt 00:00:16]} Qe5 {[%clk 00:05:55]} {[%emt 00:00:06]}
32. Bxf6+ {[%clk 00:02:23]} {[%emt 00:00:14]} Kxf6 {[%clk 00:05:52]} {[%emt
00:00:03]} 33. Qb6+ {[%clk 00:02:14]} {[%emt 00:00:09]} Re6 {[%clk 00:05:45]}
{[%emt 00:00:06]} 34. Qxb7 {[%clk 00:02:01]} {[%emt 00:00:13]} Qe3+ {[%clk
00:05:37]} {[%emt 00:00:09]} 35. Kh1 {[%clk 00:01:59]} {[%emt 00:00:01]} Qf2
{[%clk 00:05:24]} {[%emt 00:00:12]} 36. Qb4 {[%clk 00:01:45]} {[%emt 00:00:15]}
Kg6 {[%clk 00:05:16]} {[%emt 00:00:08]} 37. Rg1 {[%clk 00:01:09]} {[%emt
00:00:35]} Re2 {[%clk 00:05:08]} {[%emt 00:00:09]} 38. b3 {[%clk 00:01:09]}
{[%emt 00:00:01]} Rxa2 {[%clk 00:05:02]} {[%emt 00:00:06]} 39. Qd6+ {[%clk
00:01:08]} Kg7 {[%emt 00:00:15]} 40. Qe5+ {[%emt 00:00:01]} Kg6 {[%clk
00:04:45]} 41. Qd6+ {[%clk 00:01:07]} Kg5 {[%clk 00:04:34]} {[%emt 00:00:11]}
42. Qd8+ {[%clk 00:00:49]} {[%emt 00:00:18]} Kf4 {[%clk 00:04:10]} {[%emt
00:00:24]} 43. Qc7+ {[%clk 00:00:46]} {[%emt 00:00:03]} Kg5 {[%clk 00:04:04]}
{[%emt 00:00:06]} 44. Qxf7 {[%clk 00:00:45]} {[%emt 00:00:01]} Re2 {[%clk
00:03:52]} {[%emt 00:00:11]} 45. Qg7+ {[%clk 00:00:45]} Kf4 {[%clk 00:03:51]}
46. Rd1 {[%clk 00:00:42]} {[%emt 00:00:03]} Re1+ {[%clk 00:03:45]} {[%emt
00:00:07]} 47. Rxe1 Qxe1+ 48. Kh2 Qb1 {[%clk 00:03:07]} {[%emt 00:00:37]} 49.
h4 {[%clk 00:00:36]} {[%emt 00:00:04]} Ke3 {[%clk 00:03:04]} {[%emt 00:00:03]}
50. Qd4+ {[%clk 00:00:34]} {[%emt 00:00:02]} Ke2 {[%clk 00:03:02]} {[%emt
00:00:02]} 51. Qc4+ {[%clk 00:00:33]} Kf2 {[%clk 00:03:01]} {[%emt 00:00:02]}
52. Qd4+ {[%clk 00:00:33]} Kf1 {[%clk 00:02:59]} {[%emt 00:00:02]} 53. b4
{[%clk 00:00:31]} {[%emt 00:00:02]} Qc2 {[%clk 00:02:56]} {[%emt 00:00:02]} 54.
Qc4+ {[%clk 00:00:30]} {[%emt 00:00:02]} Ke1 {[%clk 00:02:53]} {[%emt
00:00:02]} 55. Qe6+ {[%clk 00:00:28]} {[%emt 00:00:02]} Kf2 {[%clk 00:02:44]}
{[%emt 00:00:09]} 56. c4 {[%clk 00:00:26]} {[%emt 00:00:02]} Qd2 {[%clk
00:02:38]} {[%emt 00:00:06]} 57. Qb6+ {[%clk 00:00:23]} {[%emt 00:00:04]} Kf1
{[%clk 00:02:37]} 58. Qg1+ {[%clk 00:00:21]} {[%emt 00:00:01]} Ke2 {[%clk
00:02:35]} {[%emt 00:00:02]} 59. b5 {[%clk 00:00:18]} {[%emt 00:00:03]} Qf4
{[%clk 00:02:31]} {[%emt 00:00:04]} 60. Kh3 {[%clk 00:00:17]} Qxc4 {[%clk
00:02:29]} {[%emt 00:00:02]} 61. b6 {[%clk 00:00:16]} Qb5 {[%clk 00:02:20]}
{[%emt 00:00:09]} 62. g4 {[%clk 00:00:14]} {[%emt 00:00:02]} fxg4+ {[%clk
00:02:18]} {[%emt 00:00:01]} 63. Qxg4 {[%clk 00:00:13]} {[%emt 00:00:02]} Qxb6
{[%emt 00:00:03]} 64. Qe4+ Kf2 {[%clk 00:02:14]} {[%emt 00:00:01]} 65. f4
{[%clk 00:00:11]} {[%emt 00:00:02]} Qb3+ {[%clk 00:02:12]} {[%emt 00:00:02]} 66.
Kg4 {[%clk 00:00:11]} Qg8+ {[%clk 00:02:11]} {[%emt 00:00:01]} 67. Kh3 {[%clk
00:00:10]} Qc8+ {[%clk 00:02:08]} {[%emt 00:00:03]} 68. f5 {[%emt 00:00:02]}
Qc3+ {[%clk 00:02:06]} {[%emt 00:00:01]} 69. Kg4 {[%clk 00:00:09]} {[%emt
00:00:01]} Qg7+ {[%clk 00:02:00]} {[%emt 00:00:06]} 70. Kh3 {[%clk 00:00:08]}
Qc7 {[%clk 00:01:52]} {[%emt 00:00:08]} 71. Qd4+ {[%clk 00:00:07]} {[%emt
00:00:02]} Ke2 {[%emt 00:00:01]} 72. Qe4+ {[%emt 00:00:01]} Kd2 73. f6 Qd7+
{[%clk 00:01:47]} {[%emt 00:00:02]} 74. Kg3 {[%clk 00:00:05]} Qc7+ {[%emt
00:00:01]} 75. Qf4+ Qxf4+ 76. Kxf4 {[%clk 00:00:04]} a5 77. f7 {[%emt
00:00:01]} a4 {[%clk 00:01:42]} 1/2-1/2

[Event "Božićni turnir u VaraždinskimToplicama 26.12.2025."]
[Site "Varazdinske Toplice, Croatia"]
[Date "2025.12.26"]
[Round "7.2"]
[White "Petrus, Adrian"]
[Black "Zelenika, Zoran"]
[Result "1/2-1/2"]
[TimeControl "10"]
[WhiteFideId "14573652"]
[BlackFideId "14534452"]
[WhiteElo "1636"]
[BlackElo "2031"]

1. e4 {[%clk 00:09:59]} c5 {[%clk 00:09:59]} {[%emt 00:00:01]} 2. Nf3 {[%clk
00:09:56]} {[%emt 00:00:03]} e6 {[%clk 00:09:58]} {[%emt 00:00:02]} 3. d4
{[%clk 00:09:55]} cxd4 {[%clk 00:09:57]} {[%emt 00:00:02]} 4. Nxd4 {[%clk
00:09:54]} a6 {[%clk 00:09:56]} 5. Nc3 {[%clk 00:09:50]} {[%emt 00:00:04]} Qc7
{[%clk 00:09:55]} {[%emt 00:00:01]} 6. Be3 {[%clk 00:09:47]} {[%emt 00:00:03]}
Bb4 {[%clk 00:09:54]} {[%emt 00:00:02]} 7. Qd2 {[%clk 00:09:44]} {[%emt
00:00:02]} Nf6 {[%clk 00:09:53]} {[%emt 00:00:02]} 8. f3 {[%clk 00:09:44]} d5
{[%clk 00:09:52]} 9. Bg5 {[%clk 00:09:15]} {[%emt 00:00:29]} dxe4 {[%clk
00:09:39]} {[%emt 00:00:14]} 10. Bxf6 {[%clk 00:09:05]} {[%emt 00:00:09]} gxf6
{[%clk 00:09:37]} {[%emt 00:00:02]} 11. fxe4 {[%clk 00:09:03]} {[%emt
00:00:02]} Bxc3 {[%clk 00:09:34]} {[%emt 00:00:03]} 12. bxc3 {[%clk 00:08:54]}
{[%emt 00:00:10]} Nd7 {[%clk 00:09:08]} {[%emt 00:00:26]} 13. Bd3 {[%clk
00:08:39]} {[%emt 00:00:14]} b6 {[%clk 00:08:48]} {[%emt 00:00:20]} 14. O-O
{[%clk 00:08:33]} {[%emt 00:00:07]} Bb7 {[%clk 00:08:47]} {[%emt 00:00:01]} 15.
Kh1 {[%clk 00:07:58]} {[%emt 00:00:35]} Rc8 {[%clk 00:08:40]} {[%emt 00:00:07]}
16. c4 {[%clk 00:07:56]} {[%emt 00:00:02]} Qe5 {[%clk 00:08:15]} {[%emt
00:00:24]} 17. Nf3 {[%clk 00:07:50]} {[%emt 00:00:07]} Qh5 {[%clk 00:08:11]}
{[%emt 00:00:03]} 18. Rad1 {[%clk 00:07:40]} {[%emt 00:00:10]} Rg8 {[%clk
00:06:39]} {[%emt 00:01:32]} 19. Ne1 {[%clk 00:06:50]} {[%emt 00:00:51]} Nc5
{[%clk 00:06:27]} {[%emt 00:00:12]} 20. Rb1 {[%clk 00:05:47]} {[%emt 00:01:03]}
Rd8 {[%clk 00:06:10]} {[%emt 00:00:17]} 21. Qf4 {[%clk 00:05:21]} {[%emt
00:00:26]} Qg5 {[%clk 00:05:55]} {[%emt 00:00:15]} 22. Rxb6 {[%clk 00:05:09]}
{[%emt 00:00:12]} Qxf4 {[%clk 00:05:05]} {[%emt 00:00:49]} 23. Rxf4 {[%clk
00:05:07]} {[%emt 00:00:02]} Bxe4 {[%clk 00:04:54]} {[%emt 00:00:11]} 24. Kg1
{[%clk 00:04:29]} {[%emt 00:00:38]} Nxd3 {[%clk 00:04:27]} {[%emt 00:00:28]} 25.
cxd3 {[%clk 00:04:17]} {[%emt 00:00:11]} Bxd3 {[%clk 00:04:23]} {[%emt
00:00:04]} 26. Nxd3 {[%clk 00:04:15]} {[%emt 00:00:03]} Rxd3 {[%clk 00:04:23]}
27. Rb8+ {[%clk 00:04:06]} {[%emt 00:00:08]} Rd8 {[%clk 00:04:21]} {[%emt
00:00:01]} 28. Rxd8+ {[%clk 00:04:04]} {[%emt 00:00:02]} Kxd8 {[%emt 00:00:01]}
29. Rxf6 {[%clk 00:04:03]} Ke7 {[%clk 00:04:20]} 30. Rf3 {[%clk 00:03:38]}
{[%emt 00:00:26]} Rc8 {[%clk 00:04:17]} {[%emt 00:00:02]} 31. Rc3 {[%clk
00:03:36]} {[%emt 00:00:02]} Kd6 {[%clk 00:04:16]} {[%emt 00:00:01]} 32. Kf2
{[%clk 00:03:34]} {[%emt 00:00:03]} Kc5 {[%clk 00:04:15]} 33. Rh3 {[%clk
00:03:25]} {[%emt 00:00:09]} Kxc4 {[%clk 00:03:57]} {[%emt 00:00:18]} 34. Rxh7
{[%clk 00:03:24]} f5 {[%clk 00:03:56]} 35. Re7 {[%clk 00:03:20]} {[%emt
00:00:04]} Kd5 {[%clk 00:03:54]} {[%emt 00:00:02]} 36. Ra7 {[%clk 00:03:19]}
{[%emt 00:00:02]} Rc2+ {[%clk 00:03:53]} {[%emt 00:00:01]} 37. Kf3 {[%clk
00:03:18]} {[%emt 00:00:01]} Rxa2 {[%clk 00:03:52]} 38. h4 {[%clk 00:03:17]}
Ra3+ {[%clk 00:03:50]} {[%emt 00:00:02]} 39. Kf2 {[%clk 00:03:17]} Ra4 {[%clk
00:03:42]} {[%emt 00:00:09]} 40. Kg3 {[%clk 00:03:13]} {[%emt 00:00:04]} Ra1
{[%clk 00:03:17]} {[%emt 00:00:24]} 41. Kh2 {[%clk 00:03:00]} {[%emt 00:00:14]}
Ra4 {[%clk 00:02:37]} {[%emt 00:00:39]} 42. Kg3 {[%clk 00:02:53]} {[%emt
00:00:07]} 1/2-1/2